Workbook

Sheet ПЛАН
A5: Отм. | B5: Наименование изделия | C5: Обозначения изделия | D5: Наименование детали | E5: Обозначение детали | F5: Количество | G5: Время обработки | H5: Станок | I5: Примечания
B6: Сборка | C6: 10-00 | F6: 100
D7: Деталь 2 | E7: 10-00-01 | F7: =F6+F20 -> 600 | G7: 1 | H7: Стол1
D8: Деталь 1 | E8: 10-00-02 | F8: =F6 -> 100 | G8: 2 | H8: Стол2
B9: Сборка | C9: 11-00 | F9: 200
D10: Деталь 4 | E10: 11-00-01 | F10: =F9+F22 -> 200 | G10: 2.5 | H10: Стол1
D11: Деталь 12 | E11: 11-00-02 | F11: =F9 -> 200 | G11: 1.5 | H11: Стол1
B12: Сборка | C12: 12-00 | F12: 300
D13: Деталь 14 | E13: 12-00-01 | F13: =F12 -> 300 | G13: 2 | H13: Стол2
D14: Деталь 6 | E14: 12-00-02 | F14: =F12 -> 300 | G14: 3 | H14: Стол2
B15: Сборка | C15: 13-00 | F15: 400
D16: Деталь 10 | E16: 13-00-01 | F16: =F15 -> 400 | G16: 4 | H16: Стол1
D17: Деталь 11 | E17: 13-00-02 | F17: =F15 -> 400 | G17: 2 | H17: Стол1
D18: Деталь 9 | E18: 13-00-03 | F18: =F15 -> 400 | G18: 1 | H18: Стол2
D19: Деталь 7 | E19: 13-00-04 | F19: =F15 -> 400 | G19: 3
B20: Сборка | C20: 14-00 | F20: 500
D21: Деталь 1 | E21: 10-00-01
D22: Деталь 3 | E22: 11-00-01
D23: Деталь 8 | E23: 14-00-01 | F23: =F20 -> 500 | G23: 5 | H23: Стол1

Sheet Стол1
A2: Завод | C2: Загрузка оборудования | J2: На октябрь 2021 г.
A3: Оборудование (группа) | C3: Деталь | E3: Трудоемк. на 100 дет. в нормо-час. | F3: Количество деталей на программу (в шт.) | G3: Трудоемк. на программу в нормо-час. | H3: Загрузка оборудован. по действую-щим нормам в нормо-час. | I3: Фонд времени работы одного станка | J3: Тшт, мин. | K3: Количество деталей в смену (в шт.)
A4: Инв. номер | B4: Наименование | C4: Наименование | D4: Обозначение
A5: 1 | B5: 2 | C5: 3 | D5: 4 | E5: 5 | F5: 6 | G5: 7 | H5: 8 | I5: 9 | J5: 10 | K5: 11
B6: Стол1 | H6: В 2смены | I6: =176*2 -> 352
C8: =IFERROR(INDEX(ПЛАН!$D$6:$D$94,MATCH(SMALL((ПЛАН!$H$6:$H$94="Стол1")*COUNTIF(ПЛАН!$D$6:$D$94,"<="&ПЛАН!$D$6:$D$94),COUNTIF(ПЛАН!$H$6:$H$94,"<>Стол1")+ROW(D1)),COUNTIF(ПЛАН!$D$6:$D$94,"<="&ПЛАН!$D$6:$D$94),0)),"0") -> Деталь 10 | D8: =IFERROR(INDEX(ПЛАН!E:E,SMALL(IF(ПЛАН!$H$6:$H$94="Стол1",ROW(ПЛАН!$H$6:$H$94)),ROW(E1))),"0") -> 10-00-01 | E8: =J8/60*100 -> 1.666666667 | F8: =IFERROR(INDEX(ПЛАН!F:F,SMALL(IF(ПЛАН!$H$6:$H$94="Стол1",ROW(ПЛАН!$H$6:$H$94)),ROW(F1))),"0") -> 600 | G8: =E8*F8/100 -> 10 | J8: =IFERROR(INDEX(ПЛАН!G:G,SMALL(IF(ПЛАН!$H$6:$H$94="Стол1",ROW(ПЛАН!$H$6:$H$94)),ROW(G1))),"0") -> 1 | K8: =8*60/J8 -> 480
C9: =IFERROR(INDEX(ПЛАН!$D$6:$D$94,MATCH(SMALL((ПЛАН!$H$6:$H$94="Стол1")*COUNTIF(ПЛАН!$D$6:$D$94,"<="&ПЛАН!$D$6:$D$94),COUNTIF(ПЛАН!$H$6:$H$94,"<>Стол1")+ROW(D2)),COUNTIF(ПЛАН!$D$6:$D$94,"<="&ПЛАН!$D$6:$D$94),0)),"0") -> Деталь 11 | D9: =IFERROR(INDEX(ПЛАН!E:E,SMALL(IF(ПЛАН!$H$6:$H$94="Стол1",ROW(ПЛАН!$H$6:$H$94)),ROW(E2))),"0") -> 11-00-01 | E9: =J9/60*100 -> 4.166666667 | F9: =IFERROR(INDEX(ПЛАН!F:F,SMALL(IF(ПЛАН!$H$6:$H$94="Стол1",ROW(ПЛАН!$H$6:$H$94)),ROW(F2))),"0") -> 200 | G9: =E9*F9/100 -> 8.333333333 | J9: =IFERROR(INDEX(ПЛАН!G:G,SMALL(IF(ПЛАН!$H$6:$H$94="Стол1",ROW(ПЛАН!$H$6:$H$94)),ROW(G2))),"0") -> 2.5 | K9: =8*60/J9 -> 192
C10: =IFERROR(INDEX(ПЛАН!$D$6:$D$94,MATCH(SMALL((ПЛАН!$H$6:$H$94="Стол1")*COUNTIF(ПЛАН!$D$6:$D$94,"<="&ПЛАН!$D$6:$D$94),COUNTIF(ПЛАН!$H$6:$H$94,"<>Стол1")+ROW(D3)),COUNTIF(ПЛАН!$D$6:$D$94,"<="&ПЛАН!$D$6:$D$94),0)),"0") -> Деталь 12 | D10: =IFERROR(INDEX(ПЛАН!E:E,SMALL(IF(ПЛАН!$H$6:$H$94="Стол1",ROW(ПЛАН!$H$6:$H$94)),ROW(E3))),"0") -> 11-00-02 | E10: =J10/60*100 -> 2.5 | F10: =IFERROR(INDEX(ПЛАН!F:F,SMALL(IF(ПЛАН!$H$6:$H$94="Стол1",ROW(ПЛАН!$H$6:$H$94)),ROW(F3))),"0") -> 200 | G10: =E10*F10/100 -> 5 | J10: =IFERROR(INDEX(ПЛАН!G:G,SMALL(IF(ПЛАН!$H$6:$H$94="Стол1",ROW(ПЛАН!$H$6:$H$94)),ROW(G3))),"0") -> 1.5 | K10: =8*60/J10 -> 320
C11: =IFERROR(INDEX(ПЛАН!$D$6:$D$94,MATCH(SMALL((ПЛАН!$H$6:$H$94="Стол1")*COUNTIF(ПЛАН!$D$6:$D$94,"<="&ПЛАН!$D$6:$D$94),COUNTIF(ПЛАН!$H$6:$H$94,"<>Стол1")+ROW(D4)),COUNTIF(ПЛАН!$D$6:$D$94,"<="&ПЛАН!$D$6:$D$94),0)),"0") -> Деталь 2 | D11: =IFERROR(INDEX(ПЛАН!E:E,SMALL(IF(ПЛАН!$H$6:$H$94="Стол1",ROW(ПЛАН!$H$6:$H$94)),ROW(E4))),"0") -> 13-00-01 | E11: =J11/60*100 -> 6.666666667 | F11: =IFERROR(INDEX(ПЛАН!F:F,SMALL(IF(ПЛАН!$H$6:$H$94="Стол1",ROW(ПЛАН!$H$6:$H$94)),ROW(F4))),"0") -> 400 | G11: =E11*F11/100 -> 26.66666667 | J11: =IFERROR(INDEX(ПЛАН!G:G,SMALL(IF(ПЛАН!$H$6:$H$94="Стол1",ROW(ПЛАН!$H$6:$H$94)),ROW(G4))),"0") -> 4 | K11: =8*60/J11 -> 120
C12: =IFERROR(INDEX(ПЛАН!$D$6:$D$94,MATCH(SMALL((ПЛАН!$H$6:$H$94="Стол1")*COUNTIF(ПЛАН!$D$6:$D$94,"<="&ПЛАН!$D$6:$D$94),COUNTIF(ПЛАН!$H$6:$H$94,"<>Стол1")+ROW(D5)),COUNTIF(ПЛАН!$D$6:$D$94,"<="&ПЛАН!$D$6:$D$94),0)),"0") -> Деталь 4 | D12: =IFERROR(INDEX(ПЛАН!E:E,SMALL(IF(ПЛАН!$H$6:$H$94="Стол1",ROW(ПЛАН!$H$6:$H$94)),ROW(E5))),"0") -> 13-00-02 | E12: =J12/60*100 -> 3.333333333 | F12: =IFERROR(INDEX(ПЛАН!F:F,SMALL(IF(ПЛАН!$H$6:$H$94="Стол1",ROW(ПЛАН!$H$6:$H$94)),ROW(F5))),"0") -> 400 | G12: =E12*F12/100 -> 13.33333333 | J12: =IFERROR(INDEX(ПЛАН!G:G,SMALL(IF(ПЛАН!$H$6:$H$94="Стол1",ROW(ПЛАН!$H$6:$H$94)),ROW(G5))),"0") -> 2 | K12: =8*60/J12 -> 240
C13: =IFERROR(INDEX(ПЛАН!$D$6:$D$94,MATCH(SMALL((ПЛАН!$H$6:$H$94="Стол1")*COUNTIF(ПЛАН!$D$6:$D$94,"<="&ПЛАН!$D$6:$D$94),COUNTIF(ПЛАН!$H$6:$H$94,"<>Стол1")+ROW(D6)),COUNTIF(ПЛАН!$D$6:$D$94,"<="&ПЛАН!$D$6:$D$94),0)),"0") -> Деталь 8 | D13: =IFERROR(INDEX(ПЛАН!E:E,SMALL(IF(ПЛАН!$H$6:$H$94="Стол1",ROW(ПЛАН!$H$6:$H$94)),ROW(E6))),"0") -> 14-00-01 | E13: =J13/60*100 -> 8.333333333 | F13: =IFERROR(INDEX(ПЛАН!F:F,SMALL(IF(ПЛАН!$H$6:$H$94="Стол1",ROW(ПЛАН!$H$6:$H$94)),ROW(F6))),"0") -> 500 | G13: =E13*F13/100 -> 41.66666667 | J13: =IFERROR(INDEX(ПЛАН!G:G,SMALL(IF(ПЛАН!$H$6:$H$94="Стол1",ROW(ПЛАН!$H$6:$H$94)),ROW(G6))),"0") -> 5 | K13: =8*60/J13 -> 96
G15: =SUM(G8:G13) -> 105 | H15: =G15/(I6*1) -> 0.2982954545
